[Event "Titled Tuesday Blitz May 23 Early 2023"]
[White "ibove"]
[Black "Sliwicki, Damian"]
[BlackFideId "1127128"]
[WhiteElo "2302"]
[BlackElo "2030"]
[Result "0-1"]
[Round "02"]
[TimeControl "180+2"]
[Date "2023.05.23"]
[WhiteClock "0:00:59"]
[BlackClock "0:00:14"]

1. d4 {[%clk 0:03:00]}  Nf6 {[%clk 0:02:55]} 2. Nf3 {[%clk 0:02:58]}  e6 {[%clk 0:02:56]} 3. Bg5 {[%clk 0:02:58]}  Be7 {[%clk 0:02:53]} 4. e3 {[%clk 0:02:56]}  b6 {[%clk 0:02:52]} 5. Bd3 {[%clk 0:02:55]}  Bb7 {[%clk 0:02:51]} 6. Nbd2 {[%clk 0:02:55]}  O-O {[%clk 0:02:51]} 7. h4 {[%clk 0:02:53]}  d5 {[%clk 0:02:45]} 8. Bxf6 {[%clk 0:02:50]}  Bxf6 {[%clk 0:02:36]} 9. Bxh7+ {[%clk 0:02:43]}  Kxh7 {[%clk 0:01:41]} 10. Ng5+ {[%clk 0:02:43]}  Kh6 {[%clk 0:01:40]} 11. f4 {[%clk 0:02:36]}  Qe7 {[%clk 0:01:14]} 12. g4 {[%clk 0:02:30]}  g6 {[%clk 0:01:09]} 13. h5 {[%clk 0:02:26]}  Bxg5 {[%clk 0:01:03]} 14. fxg5+ {[%clk 0:02:24]}  Qxg5 {[%clk 0:01:02]} 15. Qf3 {[%clk 0:02:17]}  Nd7 {[%clk 0:00:58]} 16. O-O-O {[%clk 0:02:16]}  Kg7 {[%clk 0:00:56]} 17. Rdf1 {[%clk 0:02:03]}  e5 {[%clk 0:00:45]} 18. Qh3 {[%clk 0:01:46]}  Rh8 {[%clk 0:00:38]} 19. Nf3 {[%clk 0:01:41]}  Qxe3+ {[%clk 0:00:37]} 20. Kb1 {[%clk 0:01:41]}  Raf8 {[%clk 0:00:32]} 21. Re1 {[%clk 0:01:36]}  Qf4 {[%clk 0:00:30]} 22. dxe5 {[%clk 0:01:28]}  d4 {[%clk 0:00:29]} 23. Rhf1 {[%clk 0:01:28]}  Bxf3 {[%clk 0:00:25]} 24. Rxf3 {[%clk 0:01:27]}  Qd2 {[%clk 0:00:23]} 25. Qg3 {[%clk 0:01:24]}  Re8 {[%clk 0:00:19]} 26. Rd3 {[%clk 0:01:12]}  Qg5 {[%clk 0:00:15]} 27. e6 {[%clk 0:01:09]}  Rxe6 {[%clk 0:00:15]} 28. Qxc7 {[%clk 0:00:59]}  Rxe1+ {[%clk 0:00:14]} 0-1


[Site "https://www.chess.com"]

[Event "Titled Tuesday Blitz May 23 Early 2023"]
[White "Estrada Nieto, Julian"]
[Black "Bashkansky, Ethan"]
[WhiteFideId "5101018"]
[BlackFideId "2071533"]
[WhiteElo "2161"]
[BlackElo "2298"]
[Result "1-0"]
[Round "02"]
[TimeControl "180+2"]
[Date "2023.05.23"]
[WhiteClock "0:00:55"]
[BlackClock "0:00:18"]

1. e4 {[%clk 0:03:00]}  c6 {[%clk 0:03:00]} 2. d4 {[%clk 0:03:00]}  d5 {[%clk 0:03:01]} 3. Nc3 {[%clk 0:03:00]}  dxe4 {[%clk 0:03:01]} 4. Nxe4 {[%clk 0:03:01]}  Bf5 {[%clk 0:03:01]} 5. Ng3 {[%clk 0:03:01]}  Bg6 {[%clk 0:03:01]} 6. h4 {[%clk 0:03:02]}  h6 {[%clk 0:03:01]} 7. Nf3 {[%clk 0:03:03]}  Nd7 {[%clk 0:03:01]} 8. h5 {[%clk 0:03:04]}  Bh7 {[%clk 0:03:02]} 9. Bd3 {[%clk 0:03:05]}  Bxd3 {[%clk 0:03:02]} 10. Qxd3 {[%clk 0:03:05]}  e6 {[%clk 0:03:02]} 11. Bd2 {[%clk 0:03:06]}  Ngf6 {[%clk 0:03:02]} 12. O-O-O {[%clk 0:03:06]}  Be7 {[%clk 0:03:03]} 13. Qe2 {[%clk 0:03:06]}  O-O {[%clk 0:03:03]} 14. Nf1 {[%clk 0:03:06]}  c5 {[%clk 0:02:58]} 15. g4 {[%clk 0:03:06]}  Nh7 {[%clk 0:02:55]} 16. Rg1 {[%clk 0:02:42]}  cxd4 {[%clk 0:02:48]} 17. Nxd4 {[%clk 0:02:30]}  Bf6 {[%clk 0:02:33]} 18. Be3 {[%clk 0:02:23]}  Qa5 {[%clk 0:02:11]} 19. Kb1 {[%clk 0:02:22]}  Nb6 {[%clk 0:02:01]} 20. Ng3 {[%clk 0:02:18]}  Rac8 {[%clk 0:01:56]} 21. b3 {[%clk 0:02:11]}  Qb4 {[%clk 0:01:30]} 22. Qb5 {[%clk 0:01:51]}  Qc3 {[%clk 0:01:17]} 23. Ne4 {[%clk 0:01:42]}  Qc7 {[%clk 0:01:15]} 24. Nxf6+ {[%clk 0:01:41]}  Nxf6 {[%clk 0:01:07]} 25. Qd3 {[%clk 0:01:31]}  Rfd8 {[%clk 0:01:00]} 26. g5 {[%clk 0:01:23]}  Nxh5 {[%clk 0:00:58]} 27. gxh6 {[%clk 0:01:22]}  g6 {[%clk 0:00:56]} 28. Rxg6+ {[%clk 0:01:12]}  Kh8 {[%clk 0:00:51]} 29. Rg7 {[%clk 0:01:09]}  Nxg7 {[%clk 0:00:43]} 30. hxg7+ {[%clk 0:01:09]}  Kxg7 {[%clk 0:00:44]} 31. Rg1+ {[%clk 0:01:07]}  Kf8 {[%clk 0:00:44]} 32. Nxe6+ {[%clk 0:01:04]}  fxe6 {[%clk 0:00:42]} 33. Bh6+ {[%clk 0:01:04]}  Ke8 {[%clk 0:00:32]} 34. Rg8+ {[%clk 0:01:02]}  Kf7 {[%clk 0:00:30]} 35. Rg7+ {[%clk 0:01:02]}  Kf6 {[%clk 0:00:30]} 36. Qg6+ {[%clk 0:00:56]}  Ke5 {[%clk 0:00:30]} 37. Rxc7 {[%clk 0:00:56]}  Rxc7 {[%clk 0:00:18]} 38. Qg3+ {[%clk 0:00:55]} 1-0


[Site "https://www.chess.com"]

[Event "Titled Tuesday Blitz May 23 Early 2023"]
[White "Rom, Jasper"]
[Black "mohsengabr2002"]
[WhiteFideId "2023733"]
[WhiteElo "2233"]
[BlackElo "2281"]
[Result "0-1"]
[Round "02"]
[TimeControl "180+2"]
[Date "2023.05.23"]
[WhiteClock "0:00:02"]
[BlackClock "0:00:14"]

1. e4 {[%clk 0:02:57]}  c5 {[%clk 0:02:06]} 2. Nc3 {[%clk 0:02:55]}  d6 {[%clk 0:02:07]} 3. f4 {[%clk 0:02:55]}  g6 {[%clk 0:02:06]} 4. Nf3 {[%clk 0:02:55]}  Bg7 {[%clk 0:02:07]} 5. Bb5+ {[%clk 0:02:55]}  Nc6 {[%clk 0:02:08]} 6. d3 {[%clk 0:02:55]}  Bd7 {[%clk 0:02:08]} 7. O-O {[%clk 0:02:55]}  Nd4 {[%clk 0:02:08]} 8. Bc4 {[%clk 0:02:50]}  b5 {[%clk 0:02:06]} 9. Bd5 {[%clk 0:02:47]}  Rb8 {[%clk 0:02:05]} 10. Nxd4 {[%clk 0:02:47]}  cxd4 {[%clk 0:02:05]} 11. Ne2 {[%clk 0:02:47]}  e6 {[%clk 0:02:05]} 12. Bb3 {[%clk 0:02:48]}  a5 {[%clk 0:02:04]} 13. a3 {[%clk 0:02:43]}  Ne7 {[%clk 0:02:02]} 14. Qe1 {[%clk 0:02:41]}  Nc6 {[%clk 0:02:01]} 15. Qf2 {[%clk 0:02:42]}  a4 {[%clk 0:01:54]} 16. Ba2 {[%clk 0:02:41]}  b4 {[%clk 0:01:54]} 17. Bc4 {[%clk 0:02:10]}  Na5 {[%clk 0:01:49]} 18. Nxd4 {[%clk 0:02:09]}  Nxc4 {[%clk 0:01:48]} 19. dxc4 {[%clk 0:02:10]}  O-O {[%clk 0:01:30]} 20. f5 {[%clk 0:01:50]}  exf5 {[%clk 0:01:20]} 21. exf5 {[%clk 0:01:44]}  Qf6 {[%clk 0:01:17]} 22. Be3 {[%clk 0:01:37]}  bxa3 {[%clk 0:01:11]} 23. bxa3 {[%clk 0:01:37]}  Rbe8 {[%clk 0:01:11]} 24. c3 {[%clk 0:01:28]}  Qe5 {[%clk 0:01:06]} 25. Rae1 {[%clk 0:01:18]}  Bxf5 {[%clk 0:00:59]} 26. Nxf5 {[%clk 0:01:15]}  Qxf5 {[%clk 0:00:59]} 27. Qxf5 {[%clk 0:01:11]}  gxf5 {[%clk 0:01:00]} 28. Bd4 {[%clk 0:01:12]}  Rxe1 {[%clk 0:00:52]} 29. Rxe1 {[%clk 0:01:13]}  Bxd4+ {[%clk 0:00:50]} 30. cxd4 {[%clk 0:01:12]}  Rc8 {[%clk 0:00:51]} 31. Rc1 {[%clk 0:01:12]}  Kg7 {[%clk 0:00:49]} 32. Kf2 {[%clk 0:01:12]}  Kf6 {[%clk 0:00:50]} 33. Ke3 {[%clk 0:01:12]}  Rb8 {[%clk 0:00:50]} 34. Rc3 {[%clk 0:01:11]}  Rb2 {[%clk 0:00:49]} 35. c5 {[%clk 0:01:11]}  dxc5 {[%clk 0:00:48]} 36. dxc5 {[%clk 0:01:12]}  Ke7 {[%clk 0:00:44]} 37. c6 {[%clk 0:01:06]}  Kd8 {[%clk 0:00:44]} 38. Kf3 {[%clk 0:01:04]}  Kc7 {[%clk 0:00:40]} 39. Rc4 {[%clk 0:00:40]}  Rb3+ {[%clk 0:00:40]} 40. Kf4 {[%clk 0:00:40]}  Rxa3 {[%clk 0:00:41]} 41. Kxf5 {[%clk 0:00:40]}  Ra2 {[%clk 0:00:41]} 42. g4 {[%clk 0:00:30]}  a3 {[%clk 0:00:41]} 43. Ra4 {[%clk 0:00:29]}  Rf2+ {[%clk 0:00:39]} 44. Kg5 {[%clk 0:00:29]}  a2 {[%clk 0:00:40]} 45. h4 {[%clk 0:00:28]}  Kxc6 {[%clk 0:00:39]} 46. Kh6 {[%clk 0:00:25]}  Kb5 {[%clk 0:00:38]} 47. Ra8 {[%clk 0:00:23]}  Kb4 {[%clk 0:00:39]} 48. Rb8+ {[%clk 0:00:20]}  Kc3 {[%clk 0:00:38]} 49. Rc8+ {[%clk 0:00:21]}  Kb2 {[%clk 0:00:39]} 50. Rb8+ {[%clk 0:00:20]}  Kc1 {[%clk 0:00:38]} 51. Ra8 {[%clk 0:00:15]}  Kb1 {[%clk 0:00:38]} 52. Kxh7 {[%clk 0:00:14]}  Rf4 {[%clk 0:00:36]} 53. Rb8+ {[%clk 0:00:12]}  Ka1 {[%clk 0:00:35]} 54. h5 {[%clk 0:00:07]}  Rxg4 {[%clk 0:00:35]} 55. h6 {[%clk 0:00:08]}  f5 {[%clk 0:00:31]} 56. Kh8 {[%clk 0:00:08]}  f4 {[%clk 0:00:31]} 57. h7 {[%clk 0:00:09]}  Rh4 {[%clk 0:00:19]} 58. Kg7 {[%clk 0:00:08]}  Rg4+ {[%clk 0:00:17]} 59. Kh8 {[%clk 0:00:07]}  Rh4 {[%clk 0:00:17]} 60. Kg7 {[%clk 0:00:07]}  f3 {[%clk 0:00:17]} 61. Rf8 {[%clk 0:00:04]}  Kb2 {[%clk 0:00:16]} 62. Rb8+ {[%clk 0:00:05]}  Kc2 {[%clk 0:00:15]} 63. Rc8+ {[%clk 0:00:05]}  Kb3 {[%clk 0:00:15]} 64. Rb8+ {[%clk 0:00:05]}  Kc3 {[%clk 0:00:15]} 65. Rc8+ {[%clk 0:00:05]}  Kb2 {[%clk 0:00:15]} 66. Rb8+ {[%clk 0:00:06]}  Kc2 {[%clk 0:00:16]} 67. Rc8+ {[%clk 0:00:06]}  Kd3 {[%clk 0:00:16]} 68. Ra8 {[%clk 0:00:05]}  f2 {[%clk 0:00:16]} 69. Ra3+ {[%clk 0:00:05]}  Kd4 {[%clk 0:00:15]} 70. Ra4+ {[%clk 0:00:06]}  Kd5 {[%clk 0:00:16]} 71. Rxh4 {[%clk 0:00:05]}  a1=Q+ {[%clk 0:00:16]} 72. Kg8 {[%clk 0:00:05]}  f1=Q {[%clk 0:00:16]} 73. Rh5+ {[%clk 0:00:04]}  Ke6 {[%clk 0:00:16]} 74. h8=Q {[%clk 0:00:02]}  Qf7# {[%clk 0:00:14]} 0-1


[Site "https://www.chess.com"]

[Event "Titled Tuesday Blitz May 23 Early 2023"]
[White "Nissinen, Niilo Man"]
[Black "Devaev, Alexander"]
[WhiteFideId "30950767"]
[BlackFideId "4169395"]
[WhiteElo "1952"]
[BlackElo "2172"]
[Result "0-1"]
[Round "02"]
[TimeControl "180+2"]
[Date "2023.05.23"]
[WhiteClock "0:00:01"]
[BlackClock "0:00:19"]

1. e4 {[%clk 0:03:00]}  c6 {[%clk 0:02:54]} 2. d4 {[%clk 0:03:00]}  d5 {[%clk 0:02:52]} 3. Nc3 {[%clk 0:03:00]}  dxe4 {[%clk 0:02:51]} 4. Nxe4 {[%clk 0:03:01]}  Bf5 {[%clk 0:02:51]} 5. Ng3 {[%clk 0:03:01]}  Bg6 {[%clk 0:02:51]} 6. h4 {[%clk 0:03:01]}  h6 {[%clk 0:02:51]} 7. Nf3 {[%clk 0:03:02]}  Nd7 {[%clk 0:02:51]} 8. h5 {[%clk 0:03:02]}  Bh7 {[%clk 0:02:52]} 9. Bd3 {[%clk 0:03:02]}  Bxd3 {[%clk 0:02:53]} 10. Qxd3 {[%clk 0:03:02]}  Qc7 {[%clk 0:02:53]} 11. Bd2 {[%clk 0:03:01]}  e6 {[%clk 0:02:54]} 12. O-O-O {[%clk 0:03:01]}  Ngf6 {[%clk 0:02:55]} 13. Ne4 {[%clk 0:03:00]}  O-O-O {[%clk 0:02:55]} 14. Rh4 {[%clk 0:02:51]}  Nc5 {[%clk 0:02:42]} 15. Nxc5 {[%clk 0:02:44]}  Bxc5 {[%clk 0:02:43]} 16. Ne5 {[%clk 0:02:22]}  Bd6 {[%clk 0:02:39]} 17. Nc4 {[%clk 0:02:14]}  Nd5 {[%clk 0:02:11]} 18. Nxd6+ {[%clk 0:02:07]}  Qxd6 {[%clk 0:02:09]} 19. c4 {[%clk 0:02:06]}  Nf6 {[%clk 0:01:59]} 20. Bf4 {[%clk 0:02:04]}  Qb4 {[%clk 0:01:56]} 21. a3 {[%clk 0:02:00]}  Qa5 {[%clk 0:01:50]} 22. b4 {[%clk 0:01:25]}  Qa6 {[%clk 0:01:11]} 23. Be5 {[%clk 0:01:24]}  Rhe8 {[%clk 0:01:04]} 24. Kb2 {[%clk 0:01:18]}  Re7 {[%clk 0:01:02]} 25. Rc1 {[%clk 0:01:12]}  Ne8 {[%clk 0:00:52]} 26. Bf4 {[%clk 0:00:27]}  Red7 {[%clk 0:00:48]} 27. Be3 {[%clk 0:00:20]}  Kb8 {[%clk 0:00:43]} 28. Qe4 {[%clk 0:00:19]}  Ka8 {[%clk 0:00:40]} 29. Rh3 {[%clk 0:00:16]}  Nd6 {[%clk 0:00:39]} 30. Qd3 {[%clk 0:00:15]}  b5 {[%clk 0:00:35]} 31. c5 {[%clk 0:00:09]}  Nc4+ {[%clk 0:00:35]} 32. Rxc4 {[%clk 0:00:09]}  bxc4 {[%clk 0:00:35]} 33. Qc3 {[%clk 0:00:10]}  e5 {[%clk 0:00:29]} 34. Rg3 {[%clk 0:00:09]}  Rxd4 {[%clk 0:00:29]} 35. Rxg7 {[%clk 0:00:08]}  Rd3 {[%clk 0:00:27]} 36. b5 {[%clk 0:00:02]}  Qxb5+ {[%clk 0:00:20]} 37. Qb4 {[%clk 0:00:01]}  Rb3+ {[%clk 0:00:19]} 0-1


[Site "https://www.chess.com"]

[Event "Titled Tuesday Blitz May 23 Early 2023"]
[White "Belov, Alexei"]
[Black "lluiss"]
[WhiteFideId "4128206"]
[WhiteElo "2485"]
[BlackElo "2278"]
[Result "1-0"]
[Round "02"]
[TimeControl "180+2"]
[Date "2023.05.23"]
[WhiteClock "0:00:23"]
[BlackClock "0:00:00"]

1. e4 {[%clk 0:03:00]}  c5 {[%clk 0:02:59]} 2. Nf3 {[%clk 0:03:00]}  d6 {[%clk 0:02:58]} 3. d4 {[%clk 0:03:01]}  cxd4 {[%clk 0:02:58]} 4. Nxd4 {[%clk 0:03:02]}  Nf6 {[%clk 0:02:57]} 5. Nc3 {[%clk 0:03:02]}  g6 {[%clk 0:02:57]} 6. Be3 {[%clk 0:03:02]}  Bg7 {[%clk 0:02:57]} 7. f3 {[%clk 0:03:02]}  O-O {[%clk 0:02:57]} 8. Qd2 {[%clk 0:03:03]}  Nc6 {[%clk 0:02:57]} 9. Bc4 {[%clk 0:03:03]}  Bd7 {[%clk 0:02:56]} 10. O-O-O {[%clk 0:03:03]}  Ne5 {[%clk 0:02:55]} 11. Bb3 {[%clk 0:03:03]}  Qa5 {[%clk 0:02:55]} 12. Kb1 {[%clk 0:03:02]}  Rfc8 {[%clk 0:02:54]} 13. h4 {[%clk 0:03:02]}  Rxc3 {[%clk 0:02:52]} 14. Qxc3 {[%clk 0:02:59]}  Qxc3 {[%clk 0:02:52]} 15. bxc3 {[%clk 0:02:59]}  Rc8 {[%clk 0:02:53]} 16. Ne2 {[%clk 0:02:43]}  Bb5 {[%clk 0:02:43]} 17. Nf4 {[%clk 0:02:37]}  a5 {[%clk 0:01:55]} 18. a4 {[%clk 0:02:34]}  Bc6 {[%clk 0:01:52]} 19. Bb6 {[%clk 0:02:24]}  Ra8 {[%clk 0:01:44]} 20. c4 {[%clk 0:02:17]}  Ned7 {[%clk 0:01:37]} 21. Be3 {[%clk 0:02:08]}  b6 {[%clk 0:01:35]} 22. Nd5 {[%clk 0:02:01]}  Bxd5 {[%clk 0:01:26]} 23. cxd5 {[%clk 0:01:56]}  Nc5 {[%clk 0:01:26]} 24. Ka2 {[%clk 0:01:47]}  Nfd7 {[%clk 0:01:26]} 25. Ka3 {[%clk 0:01:41]}  Ne5 {[%clk 0:01:17]} 26. Rb1 {[%clk 0:01:28]}  Rc8 {[%clk 0:00:46]} 27. Ba2 {[%clk 0:01:11]}  Na6 {[%clk 0:00:45]} 28. Bxb6 {[%clk 0:01:00]}  Rxc2 {[%clk 0:00:39]} 29. Rhc1 {[%clk 0:00:56]}  Rxg2 {[%clk 0:00:26]} 30. Rc8+ {[%clk 0:00:50]}  Bf8 {[%clk 0:00:26]} 31. Bxa5 {[%clk 0:00:50]}  Nc5 {[%clk 0:00:18]} 32. Rbb8 {[%clk 0:00:40]}  Ned7 {[%clk 0:00:17]} 33. Ra8 {[%clk 0:00:38]}  Rf2 {[%clk 0:00:18]} 34. Bb6 {[%clk 0:00:26]}  Rxf3+ {[%clk 0:00:17]} 35. Kb4 {[%clk 0:00:27]}  Nd3+ {[%clk 0:00:16]} 36. Kb5 {[%clk 0:00:26]}  Kg7 {[%clk 0:00:14]} 37. Bd4+ {[%clk 0:00:24]}  f6 {[%clk 0:00:12]} 38. Rd8 {[%clk 0:00:24]}  N3e5 {[%clk 0:00:02]} 39. Bxe5 {[%clk 0:00:24]}  Nxe5 {[%clk 0:00:01]} 40. Rxf8 {[%clk 0:00:24]}  Kh6 {[%clk 0:00:00]} 41. a5 {[%clk 0:00:23]} 1-0


[Site "https://www.chess.com"]

[Event "Titled Tuesday Blitz May 23 Early 2023"]
[White "zsizsi99"]
[Black "Pasti, Aron"]
[BlackFideId "785857"]
[WhiteElo "2263"]
[BlackElo "2173"]
[Result "1-0"]
[Round "02"]
[TimeControl "180+2"]
[Date "2023.05.23"]
[WhiteClock "0:00:12"]
[BlackClock "0:00:03"]

1. e4 {[%clk 0:03:00]}  e5 {[%clk 0:03:00]} 2. d4 {[%clk 0:03:00]}  exd4 {[%clk 0:03:00]} 3. Qxd4 {[%clk 0:03:01]}  Nc6 {[%clk 0:03:00]} 4. Qe3 {[%clk 0:03:01]}  d6 {[%clk 0:03:00]} 5. Nc3 {[%clk 0:03:01]}  Nf6 {[%clk 0:02:59]} 6. Bd2 {[%clk 0:03:02]}  Be7 {[%clk 0:03:00]} 7. O-O-O {[%clk 0:03:02]}  O-O {[%clk 0:03:00]} 8. Nh3 {[%clk 0:03:00]}  a6 {[%clk 0:02:59]} 9. Nf4 {[%clk 0:03:00]}  b5 {[%clk 0:02:54]} 10. h4 {[%clk 0:02:57]}  Ne5 {[%clk 0:02:54]} 11. h5 {[%clk 0:02:54]}  c5 {[%clk 0:02:32]} 12. Qg3 {[%clk 0:02:41]}  b4 {[%clk 0:02:24]} 13. Ncd5 {[%clk 0:02:41]}  Nxe4 {[%clk 0:02:22]} 14. Nxe7+ {[%clk 0:02:26]}  Qxe7 {[%clk 0:02:23]} 15. Nd5 {[%clk 0:02:27]}  Qe6 {[%clk 0:02:10]} 16. Qb3 {[%clk 0:02:11]}  Nxf2 {[%clk 0:01:59]} 17. h6 {[%clk 0:02:07]}  Nxh1 {[%clk 0:01:42]} 18. hxg7 {[%clk 0:02:06]}  Re8 {[%clk 0:01:35]} 19. Bg5 {[%clk 0:02:04]}  Qg6 {[%clk 0:00:59]} 20. Nf6+ {[%clk 0:01:29]}  Kxg7 {[%clk 0:00:59]} 21. Nxe8+ {[%clk 0:01:29]}  Kf8 {[%clk 0:00:59]} 22. Qe3 {[%clk 0:01:12]}  Be6 {[%clk 0:00:22]} 23. Nxd6 {[%clk 0:01:01]}  Ng4 {[%clk 0:00:22]} 24. Qxc5 {[%clk 0:00:55]}  Kg8 {[%clk 0:00:16]} 25. Bd3 {[%clk 0:00:53]}  Qh5 {[%clk 0:00:11]} 26. Be4 {[%clk 0:00:28]}  Nhf2 {[%clk 0:00:11]} 27. Bxa8 {[%clk 0:00:27]}  Nxd1 {[%clk 0:00:11]} 28. Kxd1 {[%clk 0:00:15]}  Ne5+ {[%clk 0:00:06]} 29. Bf3 {[%clk 0:00:14]}  Nxf3 {[%clk 0:00:05]} 30. g3 {[%clk 0:00:13]}  Nxg5+ {[%clk 0:00:05]} 31. Kc1 {[%clk 0:00:12]}  Nf3 {[%clk 0:00:05]} 32. Qxh5 {[%clk 0:00:11]}  Nd4 {[%clk 0:00:04]} 33. Qd1 {[%clk 0:00:10]}  Nf5 {[%clk 0:00:03]} 34. Nxf5 {[%clk 0:00:10]}  Bxf5 {[%clk 0:00:04]} 35. Qd6 {[%clk 0:00:10]}  Kg7 {[%clk 0:00:04]} 36. Qxa6 {[%clk 0:00:10]}  Be6 {[%clk 0:00:05]} 37. Qb6 {[%clk 0:00:10]}  Kg6 {[%clk 0:00:05]} 38. Qxb4 {[%clk 0:00:11]}  Kg5 {[%clk 0:00:06]} 39. Qf4+ {[%clk 0:00:11]}  Kg6 {[%clk 0:00:05]} 40. a4 {[%clk 0:00:12]}  h5 {[%clk 0:00:03]} 41. a5 {[%clk 0:00:12]} 1-0


[Site "https://www.chess.com"]

[Event "Titled Tuesday Blitz May 23 Early 2023"]
[White "Shapiro, Viktor"]
[Black "Rosh Jain"]
[WhiteFideId "4175700"]
[BlackFideId "25789465"]
[WhiteElo "2152"]
[BlackElo "2233"]
[Result "0-1"]
[Round "02"]
[TimeControl "180+2"]
[Date "2023.05.23"]
[WhiteClock "0:00:00"]
[BlackClock "0:00:03"]

1. c4 {[%clk 0:03:00]}  Nf6 {[%clk 0:02:58]} 2. Nc3 {[%clk 0:03:01]}  e6 {[%clk 0:02:58]} 3. Nf3 {[%clk 0:03:00]}  d5 {[%clk 0:02:55]} 4. g3 {[%clk 0:03:01]}  d4 {[%clk 0:02:54]} 5. Na4 {[%clk 0:03:00]}  a6 {[%clk 0:02:50]} 6. Bg2 {[%clk 0:02:55]}  Bd7 {[%clk 0:02:50]} 7. Nxd4 {[%clk 0:02:49]}  Nc6 {[%clk 0:02:41]} 8. Nxc6 {[%clk 0:02:49]}  Bxc6 {[%clk 0:02:42]} 9. Bxc6+ {[%clk 0:02:49]}  bxc6 {[%clk 0:02:43]} 10. O-O {[%clk 0:02:47]}  Be7 {[%clk 0:02:42]} 11. d3 {[%clk 0:02:47]}  O-O {[%clk 0:02:41]} 12. Nc3 {[%clk 0:02:46]}  Bc5 {[%clk 0:02:39]} 13. e3 {[%clk 0:02:46]}  Qd7 {[%clk 0:02:39]} 14. d4 {[%clk 0:02:46]}  Ba7 {[%clk 0:02:39]} 15. b3 {[%clk 0:02:42]}  Rfd8 {[%clk 0:02:37]} 16. Ba3 {[%clk 0:02:42]}  e5 {[%clk 0:02:24]} 17. dxe5 {[%clk 0:02:40]}  Qe6 {[%clk 0:02:22]} 18. Qf3 {[%clk 0:02:27]}  Qxe5 {[%clk 0:02:16]} 19. Rac1 {[%clk 0:02:19]}  Rd3 {[%clk 0:02:01]} 20. Qxc6 {[%clk 0:02:14]}  Rad8 {[%clk 0:01:56]} 21. Bb2 {[%clk 0:02:00]}  Qh5 {[%clk 0:01:46]} 22. Rc2 {[%clk 0:00:59]}  Ng4 {[%clk 0:01:38]} 23. h4 {[%clk 0:00:52]}  h6 {[%clk 0:01:11]} 24. Qf3 {[%clk 0:00:43]}  Qg6 {[%clk 0:00:59]} 25. Nd5 {[%clk 0:00:36]}  R3xd5 {[%clk 0:00:38]} 26. cxd5 {[%clk 0:00:35]}  Qxc2 {[%clk 0:00:38]} 27. Bxg7 {[%clk 0:00:35]}  Kxg7 {[%clk 0:00:36]} 28. Qxg4+ {[%clk 0:00:35]}  Qg6 {[%clk 0:00:36]} 29. Qf3 {[%clk 0:00:33]}  Bb6 {[%clk 0:00:31]} 30. e4 {[%clk 0:00:32]}  Bd4 {[%clk 0:00:28]} 31. Kg2 {[%clk 0:00:31]}  Be5 {[%clk 0:00:28]} 32. Rc1 {[%clk 0:00:28]}  Qf6 {[%clk 0:00:20]} 33. Qg4+ {[%clk 0:00:24]}  Qg6 {[%clk 0:00:20]} 34. Qe2 {[%clk 0:00:24]}  Rd6 {[%clk 0:00:17]} 35. Rxc7 {[%clk 0:00:20]}  Rxd5 {[%clk 0:00:18]} 36. exd5 {[%clk 0:00:15]}  Bxc7 {[%clk 0:00:16]} 37. Qe7 {[%clk 0:00:09]}  Qd6 {[%clk 0:00:14]} 38. Qe4 {[%clk 0:00:09]}  Qe5 {[%clk 0:00:12]} 39. Qc4 {[%clk 0:00:09]}  Bd6 {[%clk 0:00:11]} 40. b4 {[%clk 0:00:08]}  h5 {[%clk 0:00:10]} 41. a4 {[%clk 0:00:08]}  f5 {[%clk 0:00:09]} 42. b5 {[%clk 0:00:08]}  axb5 {[%clk 0:00:08]} 43. axb5 {[%clk 0:00:09]}  Kf6 {[%clk 0:00:06]} 44. b6 {[%clk 0:00:09]}  Qe4+ {[%clk 0:00:06]} 45. Qxe4 {[%clk 0:00:09]}  fxe4 {[%clk 0:00:07]} 46. f3 {[%clk 0:00:10]}  e3 {[%clk 0:00:05]} 47. g4 {[%clk 0:00:10]}  hxg4 {[%clk 0:00:03]} 48. fxg4 {[%clk 0:00:00]}  Ke5 {[%clk 0:00:03]} 0-1


[Site "https://www.chess.com"]

[Event "Titled Tuesday Blitz May 23 Early 2023"]
[White "Barbot, Pierre"]
[Black "ChawitAp"]
[WhiteFideId "663727"]
[WhiteElo "2431"]
[BlackElo "2255"]
[Result "1-0"]
[Round "02"]
[TimeControl "180+2"]
[Date "2023.05.23"]
[WhiteClock "0:00:04"]
[BlackClock "0:00:04"]

1. d4 {[%clk 0:02:58]}  d5 {[%clk 0:03:00]} 2. Nc3 {[%clk 0:02:57]}  e6 {[%clk 0:02:58]} 3. Bf4 {[%clk 0:02:54]}  Nf6 {[%clk 0:02:57]} 4. Nb5 {[%clk 0:02:47]}  Na6 {[%clk 0:02:56]} 5. e3 {[%clk 0:02:44]}  c6 {[%clk 0:02:50]} 6. Nc3 {[%clk 0:02:43]}  Bd6 {[%clk 0:02:50]} 7. Nf3 {[%clk 0:02:31]}  O-O {[%clk 0:02:49]} 8. Ne5 {[%clk 0:02:28]}  Qc7 {[%clk 0:02:43]} 9. Qf3 {[%clk 0:01:55]}  Nb4 {[%clk 0:02:34]} 10. O-O-O {[%clk 0:01:46]}  Nd7 {[%clk 0:02:20]} 11. Qg3 {[%clk 0:01:36]}  f6 {[%clk 0:01:43]} 12. Ng4 {[%clk 0:01:23]}  Bxf4 {[%clk 0:01:41]} 13. exf4 {[%clk 0:01:24]}  c5 {[%clk 0:01:15]} 14. a3 {[%clk 0:01:11]}  cxd4 {[%clk 0:01:10]} 15. Rxd4 {[%clk 0:00:53]}  Nc6 {[%clk 0:01:07]} 16. Rd3 {[%clk 0:00:54]}  Nc5 {[%clk 0:00:51]} 17. Rd1 {[%clk 0:00:34]}  d4 {[%clk 0:00:47]} 18. Nb5 {[%clk 0:00:30]}  Qe7 {[%clk 0:00:19]} 19. Nxd4 {[%clk 0:00:24]}  Nxd4 {[%clk 0:00:17]} 20. Rxd4 {[%clk 0:00:25]}  Bd7 {[%clk 0:00:15]} 21. Bc4 {[%clk 0:00:21]}  b5 {[%clk 0:00:15]} 22. Ba2 {[%clk 0:00:19]}  a5 {[%clk 0:00:15]} 23. Re1 {[%clk 0:00:16]}  b4 {[%clk 0:00:15]} 24. Nh6+ {[%clk 0:00:09]}  Kh8 {[%clk 0:00:15]} 25. Nf5 {[%clk 0:00:10]}  Qf7 {[%clk 0:00:09]} 26. Nd6 {[%clk 0:00:10]}  Qe7 {[%clk 0:00:09]} 27. f5 {[%clk 0:00:04]}  bxa3 {[%clk 0:00:09]} 28. Qxa3 {[%clk 0:00:04]}  exf5 {[%clk 0:00:05]} 29. Rxe7 {[%clk 0:00:04]}  Ne4 {[%clk 0:00:06]} 30. Rxd7 {[%clk 0:00:04]}  Rab8 {[%clk 0:00:06]} 31. Nxe4 {[%clk 0:00:04]}  fxe4 {[%clk 0:00:06]} 32. Qe7 {[%clk 0:00:04]}  Rg8 {[%clk 0:00:04]} 33. Bxg8 {[%clk 0:00:04]} 1-0


[Site "https://www.chess.com"]